bitfinex-derivatives/quotes_SOLF0:USTF0_20250808
["timestamp","ask_amount","ask_price","bid_price","bid_amount"]
[1754692803572,5.6352,177.43,177.42,3.01]
[1754692803768,11.92106674,177.43,177.42,3.01]
[1754692804782,6.28586674,177.43,177.42,3.01]
[1754692805173,3.14513831,177.49,177.42,3.14513831]
[1754692805174,6.28586674,177.44,177.42,3.14513831]
[1754692805370,6.28586674,177.45,177.43,3.01]
[1754692806077,11.92026674,177.45,177.43,3.01]
[1754692806285,6.28586674,177.44,177.4,6.27513831]
[1754692806578,6.28586674,177.43,177.42,3.13]
[1754692807080,11.92096674,177.44,177.42,3.13]
[1754692807281,6.28586674,177.44,177.42,3.13]
[1754692807582,11.92066674,177.44,177.43,3.13]
[1754692807981,6.28586674,177.44,177.41,3.13]
[1754692808274,11.92460986,177.43,177.42,3.13]
[1754692808980,11.92460986,177.43,177.4,3.14513831]
[1754692809277,6.28930986,177.42,177.41,3.13]
[1754692809480,11.92460986,177.43,177.42,3.13]
[1754692809780,5.6353,177.43,177.42,3.13]
[1754692810081,11.92615943,177.43,177.42,3.13]
[1754692810281,5.6353,177.43,177.42,3.13]
[1754692814381,11.92854938,177.43,177.42,3.13]
[1754692814685,5.6353,177.43,177.42,3.13]
[1754692820281,11.92797074,177.43,177.42,3.13]
[1754692820586,6.29267074,177.43,177.42,3.13]
[1754692825390,6.29267074,177.43,177.42,8.7654]
[1754692825686,6.29267074,177.44,177.42,8.78053831]
[1754692825887,6.29267074,177.44,177.43,141.39]
[1754692826188,6.29267074,177.45,177.44,3.13]
[1754692826389,5.6342,177.46,177.44,3.13]
[1754692827000,6.2913551,177.45,177.44,3.13]
[1754692827283,6.2913551,177.45,177.44,6.27513831]
[1754692827482,9.4416498,177.54,177.45,3.13]
[1754692827683,3.17,177.61,177.54,3.13]
[1754692827984,3.17,177.61,177.55,146.83501426]
[1754692827985,3.17,177.58,177.55,146.83501426]
[1754692828186,3.17,177.58,177.55,141.39]
[1754692828383,5.6306,177.58,177.56,5.44539228]
[1754692828688,3.14513831,177.61,177.55,141.39]
[1754692828689,3.17,177.57,177.55,141.39]
[1754692828881,5.6312,177.56,177.49,3.13]
[1754692829081,5.6312,177.56,177.51,3.14513831]
[1754692829288,15.03094493,177.56,177.53,3.13]
[1754692829485,3.17,177.55,177.54,3.13]
[1754692829888,3.17,177.53,177.52,3.13]
[1754692830108,3.14513831,177.57,177.5,144.51513831]
[1754692830383,5.632,177.53,177.5,141.37]
[1754692830787,3.14513831,177.61,177.52,3.14513831]
[1754692830986,3.17,177.65,177.6,3.14513831]
[1754692831185,381.70513831,177.7,177.6,3.14513831]
[1754692831386,3.17,177.63,177.6,6.27513831]
[1754692831586,3.14513831,177.68,177.6,6.27513831]
[1754692831790,3.17,177.62,177.6,6.27513831]
[1754692832086,8.7994,177.61,177.6,3.13]
[1754692832587,3.17,177.6,177.55,144.47513831]
[1754692833093,5.6309,177.56,177.55,138.2]
[1754692833292,8.8009,177.56,177.55,138.2]
[1754692833796,3.17,177.54,177.53,6.27513831]
[1754692834115,3.17,177.54,177.53,3.13]
[1754692834279,8.8016,177.54,177.53,3.13]
[1754692834681,8.8016,177.54,177.52,138.2]
[1754692834991,3.17,177.53,177.52,141.33]
[1754692835194,3.17,177.54,177.53,3.13]
[1754692835492,5.6313,177.55,177.53,3.13]
[1754692835493,3.17,177.58,177.55,3.13]
[1754692835692,3.17,177.57,177.55,3.13]
[1754692835894,3.17,177.56,177.54,3.13]
[1754692836100,3.17,177.55,177.54,3.13]
[1754692836291,8.8014,177.55,177.54,3.13]
[1754692837588,5.6316,177.54,177.53,3.14513831]
[1754692837796,5.6316,177.54,177.53,6.28513831]
[1754692837797,8.7916,177.54,177.53,6.28513831]
[1754692837991,8.7916,177.54,177.52,138.2]
[1754692838192,8.7919,177.53,177.52,138.2]
[1754692841597,15.03134493,177.54,177.52,138.2]
[1754692842096,18.19134493,177.54,177.53,3.14]
[1754692842704,5.6319,177.53,177.52,141.34]
[1754692842893,8.7919,177.53,177.52,141.34]
[1754692843095,5.6319,177.53,177.52,138.2]
[1754692843414,5.6319,177.53,177.52,141.34]
[1754692843597,18.19134493,177.54,177.53,3.14]
[1754692844098,8.7913,177.55,177.52,138.2]
[1754692844297,3.16,177.59,177.54,3.14]
[1754692844602,3.16,177.59,177.53,3.14513831]
[1754692844603,3.16,177.59,177.56,3.14]
[1754692844800,3.16,177.58,177.55,138.14]
[1754692845301,5.6309,177.56,177.55,138.14]
[1754692845493,8.7909,177.56,177.55,138.14]
[1754692845701,8.7909,177.56,177.55,141.28]
[1754692845896,3.16,177.56,177.55,141.28]
[1754692846102,8.7907,177.57,177.56,3.14]
[1754692846400,3.14513831,177.63,177.55,138.14]
[1754692846604,8.7904,177.58,177.57,3.14]
[1754692847400,3.16,177.6,177.57,3.14513831]
[1754692847605,3.16,177.6,177.59,3.14]
[1754692847898,3.14513831,177.65,177.58,138.12]
[1754692848102,3.16,177.59,177.58,141.26]
[1754692849208,8.79,177.59,177.58,141.26]
[1754692849806,8.79,177.59,177.58,138.12]
[1754692850506,18.18974493,177.59,177.58,138.12]
[1754692850706,18.18974493,177.59,177.54,6.28513831]
[1754692850707,8.7913,177.55,177.54,6.28513831]
[1754692850899,3.16,177.54,177.53,3.14]
[1754692851096,3.16,177.54,177.53,141.26]
[1754692851301,3.16,177.54,177.53,138.12]
[1754692851501,8.7916,177.54,177.53,138.12]
[1754692851707,3.16,177.54,177.51,3.14]
[1754692851903,3.16,177.54,177.52,138.1]
[1754692852607,8.7922,177.53,177.52,138.1]
[1754692853108,8.7929,177.5,177.49,141.24]
[1754692853303,8.7929,177.5,177.49,138.1]
[1754692853610,18.19264493,177.5,177.49,138.1]
[1754692854002,8.7929,177.5,177.49,141.24]
[1754692855106,5.6326,177.51,177.49,141.24]
[1754692855303,18.19234493,177.51,177.5,3.14]
[1754692855704,8.7926,177.51,177.5,3.14]
[1754692856206,5.6323,177.52,177.51,3.14]
[1754692856513,8.7923,177.52,177.51,3.14]
[1754692856703,8.7923,177.52,177.49,138.1]
[1754692856704,5.6325,177.51,177.5,3.14]
[1754692856904,5.6325,177.51,177.49,141.24]
[1754692857104,3.14513831,177.57,177.49,141.24]
[1754692857300,3.16,177.56,177.49,141.24]
[1754692858213,5.6323,177.52,177.49,141.24]
[1754692858411,3.16,177.51,177.5,3.14]
[1754692858808,5.6323,177.52,177.5,3.14]
[1754692859513,5.6325,177.51,177.5,3.14]
[1754692859811,3.16,177.5,177.49,138.1]
[1754692860215,9.39974493,177.5,177.48,138.12]
[1754692860421,3.16,177.48,177.47,141.26]
[1754692862918,5.6333,177.49,177.47,138.12]
[1754692863116,8.7933,177.49,177.48,3.14]
[1754692864922,8.7933,177.49,177.47,138.12]
[1754692865324,8.7933,177.49,177.48,3.14]
[1754692867222,8.7933,177.49,177.47,141.33]
[1754692867418,15.03274493,177.5,177.47,138.12]
[1754692867629,18.28274493,177.5,177.48,3.21]
[1754692867822,3.25,177.52,177.48,3.21]
[1754692868020,5.6326,177.51,177.5,3.21]
[1754692868219,8.8826,177.51,177.5,141.33]
[1754692870923,8.8826,177.51,177.5,138.12]
[1754692877326,8.8826,177.51,177.5,143.62096087]
[1754692880130,15.14368444,177.51,177.5,138.12]
[1754692880630,8.8826,177.51,177.5,138.12]
[1754692885237,5.6326,177.51,177.5,141.33]
[1754692886237,8.8826,177.51,177.5,141.33]
[1754692888240,5.6326,177.51,177.5,141.33]
[1754692889438,6.26108444,177.53,177.51,3.21]
[1754692889642,9.51108444,177.54,177.53,3.21]
[1754692889939,11.89238444,177.55,177.54,3.21]
[1754692890143,9.51108444,177.57,177.55,3.14513831]
[1754692890339,18.91082937,177.57,177.56,141.29]
[1754692890539,24.54142937,177.57,177.56,141.29]
[1754692891143,24.54142937,177.57,177.56,138.08]
[1754692891335,18.28034493,177.57,177.56,138.08]
[1754692892346,24.58160766,177.57,177.56,141.29]
[1754692892844,6.30126273,177.58,177.56,141.29]
[1754692893041,6.30126273,177.58,177.57,6.35513831]
[1754692893247,6.30126273,177.59,177.58,3.21]
[1754692893447,11.93106273,177.6,177.58,3.21]
[1754692893744,15.18106273,177.6,177.59,6.35513831]
[1754692894340,15.18209706,177.6,177.59,6.35513831]
[1754692895346,15.18178466,177.6,177.59,6.35513831]
[1754692896148,5.6298,177.6,177.59,6.35513831]
[1754692896445,8.6598,177.6,177.59,6.35513831]
[1754692897646,18.05954493,177.6,177.59,3.14513831]
[1754692897847,9.39974493,177.6,177.57,3.14513831]
[1754692898145,9.33198466,177.59,177.56,138.08]
[1754692898448,3.03,177.57,177.55,138.02]
[1754692898845,12.42974493,177.57,177.55,141.12]
[1754692899056,8.661,177.56,177.55,141.12]
[1754692900745,18.06074493,177.56,177.55,138.02]
[1754692901456,15.03074493,177.56,177.55,138.02]
[1754692901752,18.06074493,177.56,177.55,141.12]
[1754692902844,15.03074493,177.56,177.55,141.12]
[1754692904451,18.06074493,177.56,177.55,141.12]
[1754692905453,18.06074493,177.56,177.55,138.02]
[1754692907253,3.03,177.53,177.51,3.14513831]
[1754692907549,3.03,177.53,177.51,138.0]
[1754692907754,12.42974493,177.53,177.51,138.0]
[1754692907954,3.03,177.52,177.51,138.0]
[1754692908263,3.03,177.52,177.51,143.49626722]
[1754692908448,8.6622,177.52,177.51,143.49626722]
[1754692911544,3.03,177.55,177.52,3.1]
[1754692911852,3.14513831,177.62,177.53,11.74140553]
[1754692911853,3.03,177.54,177.53,11.74140553]
[1754692912043,6.30198466,177.59,177.53,11.74140553]
[1754692912044,3.03,177.58,177.53,146.64140553]
[1754692912244,3.03,177.57,177.56,3.1]
[1754692912443,8.6609,177.57,177.56,141.1]
[1754692912652,5.6309,177.57,177.56,141.1]
[1754692913243,8.6609,177.57,177.56,141.1]
[1754692917750,5.6309,177.57,177.56,141.1]
[1754692917958,8.6609,177.57,177.56,144.24513831]
[1754692918150,8.6609,177.57,177.56,141.14513831]
[1754692918549,8.6609,177.57,177.56,144.24513831]
[1754692921155,5.6309,177.56,177.55,3.14513831]
[1754692921361,5.6309,177.56,177.55,144.20513831]
[1754692921751,5.6307,177.57,177.55,141.10513831]
[1754692921986,8.6607,177.57,177.56,3.1]
[1754692922255,3.03,177.55,177.51,3.14513831]
[1754692922464,3.03,177.55,177.49,3.14513831]
[1754692922656,3.03,177.55,177.5,137.96]
[1754692923162,8.6625,177.51,177.5,141.06]
[1754692923562,18.06224493,177.51,177.5,141.06]
[1754692924262,18.06224493,177.51,177.5,137.96]
[1754692924760,18.06224493,177.51,177.5,141.06]
[1754692924955,9.39974493,177.51,177.5,141.06]
[1754692925163,6.29537823,177.56,177.5,141.06]
[1754692925164,6.29537823,177.57,177.51,3.1]
[1754692925359,3.03,177.54,177.51,3.14513831]
[1754692925559,3.03,177.53,177.52,3.1]
[1754692925955,8.6622,177.52,177.51,6.24513831]
[1754692926156,5.6322,177.52,177.51,6.24513831]
[1754692926356,3.29,177.54,177.51,6.24513831]
[1754692926557,5.6321,177.53,177.51,6.24513831]
[1754692926958,8.9221,177.53,177.51,6.24513831]
[1754692927767,3.29,177.55,177.52,3.26]
[1754692927964,3.29,177.54,177.53,141.10513831]
[1754692928162,3.29,177.54,177.53,144.36513831]
[1754692928561,3.29,177.54,177.53,141.10513831]
[1754692930270,8.9216,177.54,177.53,141.10513831]
[1754692931472,3.29,177.56,177.54,3.26]
[1754692931774,3.29,177.56,177.53,144.36513831]
[1754692931964,5.6313,177.55,177.53,144.36513831]
[1754692932366,8.9213,177.55,177.53,144.36513831]
[1754692932675,8.9213,177.55,177.54,3.26]
[1754692933170,8.9213,177.55,177.53,141.10513831]
[1754692933373,8.9213,177.55,177.53,144.36513831]
[1754692935373,3.29,177.54,177.53,144.36513831]
[1754692936274,5.6313,177.55,177.53,144.36513831]
[1754692936574,8.9213,177.55,177.53,144.36513831]
[1754692936973,5.6316,177.54,177.53,144.36513831]
[1754692937180,8.9216,177.54,177.53,141.10513831]
[1754692937563,9.39974493,177.54,177.44,378.32]
[1754692937765,6.29537823,177.53,177.48,3.14513831]
[1754692937969,3.29,177.52,177.49,137.94]
[1754692938775,8.9231,177.5,177.49,137.94]
[1754692940177,3.29,177.5,177.49,144.34513831]
[1754692940372,3.29,177.53,177.5,3.26]
[1754692940677,3.29,177.53,177.52,6.40513831]
[1754692940882,3.29,177.53,177.52,144.36513831]
[1754692941379,8.922,177.53,177.52,141.10513831]
[1754692941781,8.922,177.53,177.52,144.36513831]
[1754692943178,3.29,177.53,177.52,144.36513831]
[1754692945777,3.29,177.53,177.52,141.10513831]
[1754692947087,3.29,177.53,177.52,144.36513831]
[1754692949582,9.58537823,177.54,177.53,3.26]
[1754692949786,3.29,177.55,177.53,3.26]
[1754692949984,3.29,177.55,177.54,141.08513831]
[1754692951088,8.9213,177.55,177.54,141.08513831]
[1754692951290,15.21667823,177.55,177.54,141.08513831]
[1754692953393,18.32104493,177.55,177.54,137.94]
[1754692953588,3.29,177.53,177.5,3.14513831]
[1754692953788,9.60177644,177.53,177.5,137.92]
[1754692954082,8.9227,177.51,177.5,144.32513831]
[1754692954488,8.9227,177.51,177.5,141.06513831]
[1754692954688,6.31177644,177.53,177.51,3.26]
[1754692954889,9.60177644,177.54,177.52,3.14513831]
[1754692955091,9.60177644,177.54,177.53,137.92]
[1754692955092,12.68974493,177.54,177.53,137.92]
[1754692955291,8.9216,177.54,177.53,137.92]
[1754692957091,5.6319,177.53,177.52,3.14513831]
[1754692957293,11.94301906,177.53,177.52,3.14513831]
[1754692957497,15.14301906,177.53,177.52,6.25513831]
[1754692957694,15.14301906,177.53,177.52,3.14513831]
[1754692958400,15.14301906,177.53,177.52,6.25513831]
[1754692959209,9.51111906,177.53,177.52,6.25513831]
[1754692959799,15.14301906,177.53,177.52,6.25513831]
[1754692961401,15.14301906,177.53,177.52,3.14513831]
[1754692961600,9.51111906,177.53,177.52,3.14513831]
[1754692961801,3.2,177.53,177.52,3.14513831]
[1754692962005,3.2,177.53,177.51,137.92]
[1754692962303,24.54286399,177.53,177.51,141.06513831]
[1754692962505,24.54286399,177.53,177.51,144.17513831]
[1754692963002,3.2,177.52,177.51,144.17513831]
[1754692965003,9.51111906,177.52,177.51,144.17513831]
[1754692965803,3.2,177.52,177.51,144.17513831]
[1754692966003,15.14331906,177.52,177.51,144.17513831]
[1754692966400,15.14331906,177.52,177.51,141.06513831]
[1754692966992,24.54306399,177.52,177.51,141.06513831]
[1754692967194,24.54306399,177.52,177.51,137.92]
[1754692967803,21.34306399,177.52,177.51,137.92]
[1754692967995,24.54306399,177.52,177.51,137.92]
[1754692970505,18.23194493,177.52,177.51,137.92]
[1754692971497,9.39974493,177.52,177.51,141.03]
[1754692971702,6.31362299,177.53,177.51,137.92]
[1754692971904,9.51362299,177.53,177.52,3.14513831]
[1754692972304,3.2,177.53,177.52,3.14513831]
[1754692973198,8.832,177.53,177.52,3.14513831]
[1754692975605,18.23174493,177.53,177.52,3.14513831]
[1754692975904,8.8322,177.52,177.51,137.92]
[1754692976099,15.1444518,177.52,177.51,137.92]
[1754692976300,6.3122518,177.52,177.51,141.03]
[1754692976801,11.9442518,177.53,177.51,137.92]
[1754692977005,15.1442518,177.53,177.52,3.11]
[1754692977400,8.832,177.53,177.52,3.11]
[1754692978110,8.8322,177.52,177.51,137.92]
[1754692978308,24.54530303,177.52,177.51,137.92]
[1754692979204,24.54530303,177.52,177.51,141.03]
[1754692981406,15.71310303,177.52,177.51,141.03]
[1754692981898,11.9453581,177.53,177.51,137.92]
[1754692982103,11.9453581,177.53,177.52,6.25513831]
[1754692982307,15.71310303,177.53,177.52,6.25513831]
[1754692982499,18.91310303,177.53,177.52,6.25513831]
[1754692983098,18.91310303,177.53,177.52,3.14513831]
[1754692984213,24.54500303,177.53,177.52,3.14513831]
[1754692985115,18.91310303,177.53,177.52,3.14513831]
[1754692985310,18.91310303,177.53,177.52,6.25513831]
[1754692985814,24.54500303,177.53,177.52,6.25513831]
[1754692986112,24.54500303,177.53,177.52,3.14513831]
[1754692991311,6.3133581,177.53,177.52,6.16513831]
[1754692992110,9.5833581,177.53,177.52,6.16513831]
[1754692993215,15.2152581,177.53,177.52,6.16513831]
[1754692993411,15.2152581,177.53,177.52,3.14513831]
[1754692994413,15.2152581,177.53,177.52,6.16513831]
[1754692996520,9.5833581,177.53,177.52,6.16513831]
[1754692997620,15.2152581,177.53,177.51,137.92]
[1754692997812,3.27,177.52,177.51,140.94]
[1754692999118,3.27,177.52,177.51,144.08513831]
[1754693002726,3.27,177.52,177.51,142.94906395]
[1754693006622,6.3133581,177.53,177.52,3.02]
[1754693006820,3.27,177.58,177.52,3.02]
[1754693007019,3.27,177.58,177.57,5.02906395]
[1754693007225,12.66974493,177.58,177.57,142.82906395]
[1754693007426,3.27,177.58,177.57,142.82906395]
[1754693008424,3.27,177.58,177.57,139.80906395]
[1754693008624,3.27,177.58,177.57,140.93714572]
[1754693009722,12.66974493,177.58,177.57,140.93714572]
[1754693010827,18.30004493,177.58,177.57,140.93714572]
[1754693011426,18.30004493,177.58,177.57,143.95714572]
[1754693011727,18.30004493,177.58,177.57,140.93714572]
[1754693015436,3.27,177.58,177.57,143.95714572]
[1754693016036,5.6298,177.6,177.57,143.95714572]
[1754693016231,3.11,177.59,177.58,3.2]
[1754693016436,3.11,177.59,177.58,6.33714572]
[1754693020533,3.11,177.59,177.58,3.2]
[1754693020729,3.11,177.59,177.58,6.33714572]
[1754693025435,3.11,177.59,177.58,3.13714572]
[1754693025640,12.50974493,177.59,177.57,140.93714572]
[1754693025843,3.11,177.58,177.57,140.93714572]
[1754693029442,8.7403,177.58,177.57,140.93714572]
[1754693029943,8.7403,177.58,177.57,137.8]
[1754693030134,8.7403,177.58,177.57,140.93714572]
[1754693030733,8.7403,177.58,177.57,139.80795086]
[1754693035343,8.7403,177.58,177.57,143.00795086]
[1754693035555,8.7403,177.58,177.57,139.80795086]
[1754693036550,8.7403,177.58,177.57,143.00795086]
[1754693037748,3.11,177.58,177.57,143.00795086]
[1754693042358,3.11,177.61,177.58,3.2]
[1754693042548,3.11,177.61,177.52,235.0]
[1754693042549,11.93226656,177.62,177.6,5.20795086]
[1754693042752,11.93226656,177.62,177.61,137.64]
[1754693042952,5.6291,177.62,177.61,137.64]
[1754693043155,8.7391,177.62,177.61,137.64]
[1754693044259,3.11,177.62,177.61,140.84]
[1754693046060,9.41316656,177.62,177.61,140.84]
[1754693047256,3.11,177.62,177.61,140.84]
[1754693047658,3.18,177.63,177.61,137.64]
[1754693047954,3.18,177.63,177.62,4.99795086]
[1754693048359,9.48316656,177.63,177.62,4.99795086]
[1754693049456,6.30316656,177.63,177.62,4.99795086]
[1754693051060,9.48316656,177.63,177.62,4.99795086]
[1754693052561,3.18,177.63,177.62,4.99795086]
[1754693052756,3.18,177.63,177.62,10.62705086]
[1754693053163,3.18,177.63,177.62,4.99795086]
[1754693057071,3.18,177.64,177.63,2.99]
[1754693057372,3.18,177.64,177.63,4.99795086]
[1754693059171,3.18,177.64,177.63,2.00795086]
[1754693060673,3.18,177.64,177.62,2.99]
[1754693060875,3.18,177.64,177.63,2.00795086]
[1754693061076,12.57974493,177.64,177.63,2.00795086]
[1754693061272,3.18,177.64,177.63,2.00795086]
[1754693064174,8.8084,177.64,177.63,2.00795086]
[1754693064378,3.18,177.63,177.61,2.00795086]
[1754693064568,3.18,177.63,177.61,139.54795086]
[1754693064569,3.18,177.62,177.61,139.54795086]
[1754693064973,3.18,177.62,177.61,137.54]
[1754693065175,3.18,177.62,177.61,139.54795086]
[1754693065874,18.20884493,177.62,177.61,139.54795086]
[1754693066277,24.51752609,177.62,177.61,139.54795086]
[1754693066477,18.20884493,177.62,177.61,139.54795086]
[1754693066672,24.51752609,177.62,177.61,139.54795086]
[1754693068586,24.51752609,177.62,177.61,137.54]
[1754693069280,12.57974493,177.62,177.61,137.54]
[1754693069585,3.18,177.63,177.62,2.99]
[1754693069785,12.57974493,177.63,177.62,4.99795086]
[1754693070083,12.57974493,177.63,177.62,2.00795086]
[1754693072588,12.57974493,177.63,177.62,4.99795086]
[1754693074191,12.57974493,177.63,177.62,2.00795086]
[1754693074392,9.48868116,177.64,177.62,2.00795086]
[1754693074593,9.48868116,177.64,177.63,2.99]
[1754693074892,18.88842609,177.64,177.63,2.99]
[1754693075692,12.57974493,177.64,177.63,2.99]
[1754693075992,18.88842609,177.64,177.63,2.99]
[1754693078588,3.06,177.63,177.62,2.00795086]
[1754693079797,3.06,177.63,177.61,143.1693]
[1754693079996,3.06,177.63,177.62,2.00795086]
[1754693081997,9.36868116,177.63,177.62,2.00795086]
[1754693082496,3.06,177.63,177.62,2.00795086]
[1754693082895,9.36868116,177.63,177.62,2.00795086]
[1754693085098,9.36868116,177.63,177.62,10.64705086]
[1754693085994,3.06,177.63,177.62,10.64705086]
[1754693086400,9.36868116,177.64,177.63,8.6387]
[1754693086599,3.06,177.64,177.63,8.6387]
[1754693087000,3.06,177.64,177.63,3.01]
[1754693087300,9.36868116,177.64,177.63,3.01]
[1754693087704,3.06,177.64,177.63,3.01]
[1754693088105,9.36868116,177.64,177.63,3.01]
[1754693088300,3.06,177.64,177.63,3.01]
[1754693088502,9.36868116,177.64,177.63,3.01]
[1754693088702,3.06,177.64,177.63,3.01]
[1754693089112,3.06,177.64,177.62,10.64685086]
[1754693089624,3.06,177.64,177.63,14.07930149]
[1754693090206,3.06,177.64,177.63,11.06930149]
[1754693091112,3.06,177.64,177.63,14.07930149]
[1754693091611,6.30868116,177.65,177.63,14.07930149]
[1754693091612,9.36868116,177.65,177.64,8.6384]
[1754693091809,12.45974493,177.65,177.64,153.52695235]
[1754693092211,9.36868116,177.67,177.65,8.638]
[1754693092504,9.36868116,177.67,177.66,10.45855235]
[1754693093105,9.36868116,177.67,177.66,7.44855235]
[1754693094613,3.06,177.66,177.64,137.44]
[1754693094911,15.70842609,177.67,177.65,7.44172154]
[1754693095213,3.06,177.66,177.65,2.00795086]
[1754693095411,3.06,177.66,177.65,7.441259]
[1754693095614,11.93648116,177.67,177.65,5.43330814]
[1754693095914,3.06,177.66,177.65,2.00795086]
[1754693096212,3.06,177.66,177.65,7.44117136]
[1754693096508,3.06,177.66,177.65,10.45117136]
[1754693096820,3.06,177.67,177.66,3.01]
[1754693097012,12.45974493,177.67,177.66,5.4332205]
[1754693097212,6.30868116,177.68,177.66,8.4432205]
[1754693097410,9.36868116,177.68,177.67,142.43795086]
[1754693097712,3.06,177.68,177.67,142.43795086]
[1754693097913,3.06,177.68,177.67,153.49570243]
[1754693098614,3.06,177.68,177.67,147.86820243]
[1754693099215,3.06,177.69,177.68,3.01]
[1754693099413,3.06,177.69,177.68,5.01795086]
[1754693100811,3.06,177.69,177.68,10.44463607]
[1754693101125,3.06,177.69,177.68,5.01795086]
[1754693102017,11.93508116,177.71,177.68,10.44329021]
[1754693102221,9.36868116,177.71,177.7,2.00795086]
[1754693102415,9.36868116,177.72,177.71,3.01]
[1754693102618,3.06,177.71,177.7,139.40795086]
[1754693102819,8.6862,177.71,177.7,139.40795086]
[1754693104006,18.08594493,177.71,177.7,139.40795086]
[1754693107921,3.27,177.7,177.63,5.0]
[1754693108218,9.57868116,177.7,177.67,2.00795086]
[1754693108413,3.27,177.69,177.67,2.00795086]
[1754693108616,3.27,177.68,177.67,2.00795086]
[1754693109015,12.66974493,177.68,177.66,137.36]
[1754693109219,3.27,177.67,177.66,137.36]
[1754693109422,3.27,177.67,177.63,2.00795086]
[1754693109624,3.27,177.67,177.63,139.36795086]
[1754693109925,3.27,177.64,177.63,139.36795086]
[1754693110318,12.66974493,177.64,177.63,139.36795086]
[1754693110824,12.66974493,177.64,177.63,137.36]
[1754693111023,18.29814493,177.64,177.63,137.36]
[1754693111228,3.27,177.63,177.59,3.13582752]
[1754693111526,8.8996,177.61,177.6,137.36]
[1754693119323,8.8996,177.61,177.6,140.58]
[1754693122026,8.8996,177.61,177.6,137.36]
[1754693122531,18.29934493,177.61,177.6,137.36]
[1754693123039,3.27,177.6,177.53,140.58]
[1754693123226,3.27,177.58,177.54,3.22]
[1754693123527,3.27,177.58,177.55,3.22]
[1754693123733,3.27,177.6,177.58,3.22]
[1754693124025,3.27,177.61,177.59,3.22]
[1754693124232,3.27,177.61,177.6,6.35582752]
[1754693124433,12.66974493,177.61,177.6,6.35582752]
[1754693124632,3.27,177.61,177.6,6.35582752]
[1754693124928,8.8994,177.61,177.6,6.35582752]
[1754693125129,8.8994,177.61,177.6,3.13582752]
[1754693126126,8.8994,177.61,177.6,6.35582752]
[1754693126521,8.8994,177.61,177.6,3.13582752]
[1754693126728,3.27,177.61,177.6,3.13582752]
[1754693127130,3.27,177.61,177.58,3.22]
[1754693127131,3.27,177.56,177.52,5.632]
[1754693127427,5.6307,177.57,177.54,6.35582752]
[1754693127627,3.27,177.56,177.55,3.22]
[1754693129731,5.6307,177.57,177.55,3.22]
[1754693129930,8.9007,177.57,177.55,3.22]
[1754693130331,3.27,177.56,177.55,3.22]
[1754693130731,3.27,177.55,177.54,6.35582752]
[1754693131334,9.39974493,177.56,177.54,3.13582752]
[1754693131532,9.39974493,177.56,177.55,3.22]
[1754693132032,3.27,177.58,177.55,3.22]
[1754693132234,3.27,177.61,177.57,3.22]
[1754693132434,3.27,177.61,177.58,140.51582752]
[1754693132629,3.27,177.6,177.59,3.22]
[1754693133731,3.27,177.6,177.58,140.51582752]
[1754693134132,3.27,177.6,177.58,143.73582752]
[1754693134328,6.29504855,177.64,177.58,143.73582752]
[1754693134531,3.27,177.63,177.58,143.73582752]
[1754693134736,3.27,177.63,177.59,3.22]
[1754693135038,3.27,177.6,177.59,3.22]
[1754693135437,12.66974493,177.6,177.59,3.22]
[1754693135638,3.27,177.62,177.59,3.22]
[1754693135839,6.29504855,177.65,177.59,3.22]
[1754693136140,5.6288,177.63,177.6,6.35582752]